Cogmind - Beta 16 @@@ ROGUE MODE // 2025.10.26 @ 15:49:48 Player: Petvaria Result: Self-destructed Performance ------------- Evolutions (8) 4000 Regions Visited (24) 4800 Robots Destroyed (176) 880 Value Destroyed (3715) 3715 Prototype IDs (40) 800 Alien Tech Used (1) 200 Bonus (1737) 1737 TOTAL SCORE: 16132 Bonus ------- High Alert Combat Kills 137 Registered with UFD 300 Met Optimus in HQ 500 Met Zhirov 300 MAIN.C Attacked Warlord 500 Cogmind --------- Core Integrity 20/1450 Matter 39/300 Energy 100/100 System Corruption 14% Temperature Cool (0) Movement Core (50) Location -2/Research Parts ------- > --- POWER (2) -------- (None) > --- PROPULSION (6) --- (None) > --- UTILITY (10) ----- Spectral Analyzer Experimental Signal Interpreter Jamming Amplifier Authchip [Propulsion] > --- WEAPON (5) ------- (None) > --- INVENTORY (5) ---- Antimatter Reactor Advanced Transmission Jammer Graphene Brace Null Cannon Power Sword Peak State ------------ > --- POWER ------------ Backup Power VII Light Particle Reactor > --- PROPULSION ------- Cooled VTOL Module Field Propulsion Array Diametric Drive Electron Diverter Electron Diverter > --- UTILITY ---------- Medium Storage Unit Advanced Weight Redist. System Enhanced Optical Array Advanced Sensor Array Experimental Signal Interpreter Advanced Reaction Control System Centrium Light Armor Plating Hacking Suite Advanced Hacking Suite Ghost Barrier > --- WEAPON ----------- Vortex Driver Power Sword > --- INVENTORY -------- Light Antimatter Reactor Improved VTOL Module Improved VTOL Module Advanced Transmission Jammer Graphene Brace Authchip [Propulsion] A0-MCA's Component Scanner Null Cannon [Rating: 135] Favorites ----------- Power Light Ion Engine Engine Light Ion Engine Power Core Micro Nuclear Core Reactor Light Antimatter Reactor Propulsion Light Treads Treads Light Treads Wheel Wheel Flight Unit Improved VTOL Module Utility Large Storage Unit Device Seismic Detector Storage Large Storage Unit Processor Experimental Signal Interpreter Hackware Advanced Hacking Suite Protection Reflective Plating Weapon Improved Assault Rifle Energy Cannon Vortex Driver Ballistic Gun Improved Assault Rifle Ballistic Cannon Light Cannon Launcher Smartbomb Launcher Slashing Weapon Katana Special Melee Weapon Improved Datajack Build | -11 -10 -9 -8 -7 -7 -7 -7 -5 -5 -5 -5 -5 -5 -4 -4 -4 -4 -4 -4 -4 -3 -3 -3 -2 ------- Run | Yrd Mat Mat Mat Fac Sto Rec Scr Fac Was Fac Upp Upp Zhi Pro Fac Was Fac Upp Upp War Pro Res Tes Res Slots Evolved 16 | . . 2 2 2 . . . 4 . . . . . . 2 . . . . . . 2 . 2 Power 1 | . . . . . . . . 1 . . . . . . . . . . . . . . . . Propulsion 4 | . . 1 1 . . . . 1 . . . . . . 1 . . . . . . . . . Utility 8 | . . 1 1 2 . . . 2 . . . . . . 1 . . . . . . 1 . . Weapon 3 | . . . . . . . . . . . . . . . . . . . . . . 1 . 2 Parts Attached 167 | 6 7 30 36 6 . 1 6 6 . 8 2 . 4 . 10 1 9 1 1 10 1 4 6 12 Power 27 | 1 1 3 3 1 . 1 . 1 . 2 . . 2 . 5 . . . . 1 1 2 1 2 Engine 5 | 1 1 3 . . . . . . . . . . . . . . . . . . . . . . Core 13 | . . . 3 1 . 1 . 1 . 2 . . 1 . 3 . . . . . . . . 1 Reactor 9 | . . . . . . . . . . . . . 1 . 2 . . . . 1 1 2 1 1 Propulsion 46 | 2 . 13 19 . . . 1 2 . 1 . . . . . . 2 . . 3 . 1 1 1 Treads 28 | 2 . 12 14 . . . . . . . . . . . . . . . . . . . . . Leg . | . . . . . . . . . . . . . . . . . . . . . . . . . Wheel 1 | . . 1 . . . . . . . . . . . . . . . . . . . . . . Hover . | . . . . . . . . . . . . . . . . . . . . . . . . . Flight 17 | . . . 5 . . . 1 2 . 1 . . . . . . 2 . . 3 . 1 1 1 Utility 68 | 1 2 9 9 4 . . 5 2 . 4 2 . 2 . 3 1 7 . 1 5 . 1 2 8 Device 23 | . 1 1 2 . . . 1 2 . 1 . . . . 1 1 6 . . 3 . . 1 3 Storage 6 | 1 1 1 2 . . . . . . . . . . . . . . . . . . . . 1 Processor 7 | . . . 1 . . . 1 . . . 1 . . . . . . . . 1 . . . 3 Hackware 15 | . . . . 4 . . 1 . . 3 . . 1 . 2 . . . 1 1 . 1 . 1 Protection 17 | . . 7 4 . . . 2 . . . 1 . 1 . . . 1 . . . . . 1 . Artifact . | . . . . . . . . . . . . . . . . . . . . . . . . . Weapon 26 | 2 4 5 5 1 . . . 1 . 1 . . . . 2 . . 1 . 1 . . 2 1 Energy Gun . | . . . . . . . . . . . . . . . . . . . . . . . . . Energy Cannon 2 | . . . . . . . . . . . . . . . . . . . . 1 . . 1 . Ballistic Gun 14 | 2 3 5 4 . . . . . . . . . . . . . . . . . . . . . Ballistic Cannon 1 | . 1 . . . . . . . . . . . . . . . . . . . . . . . Launcher 1 | . . . . . . . . . . . . . . . . . . . . . . . . 1 Special Weapon . | . . . . . . . . . . . . . . . . . . . . . . . . . Impact Weapon . | . . . . . . . . . . . . . . . . . . . . . . . . . Slashing Weapon 4 | . . . 1 . . . . 1 . . . . . . 1 . . . . . . . 1 . Piercing Weapon . | . . . . . . . . . . . . . . . . . . . . . . . . . Special Melee Weapon 4 | . . . . 1 . . . . . 1 . . . . 1 . . 1 . . . . . . Unidentified Prototypes 16 | . . 1 1 . . . 1 1 . . . . 3 . . . . . . 7 . . 2 . Parts Lost 53 | . 1 5 2 . . . . 2 . 5 . . . . 4 . 5 . . 3 . 1 5 20 Power 9 | . . . . . . . . 1 . 1 . . . . 1 . 1 . . 1 . . 1 3 Propulsion 10 | . . 2 . . . . . . . . . . . . . . 2 . . . . . . 6 Utility 28 | . . 2 2 . . . . 1 . 3 . . . . 3 . 1 . . 1 . 1 3 11 Weapon 6 | . 1 1 . . . . . . . 1 . . . . . . 1 . . 1 . . 1 . Highest Loss Streak 11 | . 1 2 1 . . . . 2 . 3 . . . . 3 . 3 . . 3 . 1 5 11 To Critical Strikes 1 | . . . . . . . . . . . . . . . . . . . . . . . . 1 Average Backups 11 | 2 8 14 14 8 10 10 10 9 10 9 9 10 10 10 9 9 8 10 10 10 8 8 9 9 Power 1 | . . 1 1 3 3 2 2 1 2 1 1 1 1 1 . 1 1 1 1 1 . . 2 . Propulsion 2 | 1 2 2 4 2 5 5 4 2 3 2 3 3 3 3 2 3 2 3 3 2 1 1 1 2 Utility 3 | . 2 5 3 . 1 1 2 3 4 4 4 4 4 4 5 5 5 6 6 6 6 6 4 3 Weapon 2 | . 1 3 4 . . . . . 1 1 1 1 1 1 . . . . . . 1 1 1 2 Tool/Special . | . . . . . . . . . . . . . . . . . . . . . . . . . Unused Backups 26 | . 1 8 6 1 . . 1 . . 2 1 1 . . 1 . 1 . . . . . . 3 Power 5 | . . 1 1 1 . . . . . 1 . . . . . . . . . . . . . 1 Propulsion 3 | . . 1 1 . . . 1 . . . . . . . . . . . . . . . . . Utility 11 | . 1 2 1 . . . . . . 1 1 1 . . 1 . 1 . . . . . . 2 Weapon 6 | . . 4 2 . . . . . . . . . . . . . . . . . . . . . Tool/Special 1 | . . . 1 . . . . . . . . . . . . . . . . . . . . . Average Slot Usage (%) 94 | . 98 98 98 90 84 89 92 92 94 91 87 88 88 88 94 89 88 79 84 93 77 71 76 61 Engine 5 | . 14 11 2 . . . . . . . . . . . . . . . . 4 . . . . Core 3 | . . . 6 7 7 7 7 5 5 4 5 5 5 5 9 10 3 . . . . . 1 1 Treads 19 | . 28 32 33 . . . . . . . . . . . . . . . . . . . . . Flight 11 | . . . 2 30 30 30 30 29 29 29 29 29 29 29 31 31 28 26 26 26 26 23 23 17 Device 10 | . 12 11 9 14 7 12 10 6 11 10 5 5 5 5 4 . 10 10 10 9 9 7 8 8 Storage 8 | . 14 11 9 7 7 7 7 5 5 5 5 5 5 5 5 5 5 5 5 5 5 4 4 3 Processor 3 | . . . . 7 7 7 7 5 5 5 10 11 11 11 10 10 10 10 10 10 10 9 9 7 Hackware 5 | . . . . 14 15 15 15 17 17 15 11 11 11 11 17 21 19 10 10 15 15 15 18 10 Protection 7 | . . 10 16 . . . 4 8 5 4 8 11 11 11 7 . . 5 5 5 . . 1 2 Ballistic Gun 13 | . 27 21 16 . . . . . . . . . . . . . . . . . . . . . Slashing Weapon 2 | . . . . 7 7 7 7 5 5 5 5 5 5 5 5 5 5 5 5 5 5 4 2 3 Peak Build Rating 135 | 6 8 18 37 43 39 40 54 69 66 73 77 74 83 75 97 94 98 96 103 126 105 117 135 128 Average Rating 38 | 4 7 14 26 39 39 39 45 63 66 70 73 74 75 75 90 87 92 91 97 115 104 104 115 102 On Entrance 64 | . 6 8 17 33 39 39 40 54 66 66 68 74 74 75 75 87 94 90 96 103 88 105 103 120 Avg Prop Armor Cover (%) 17 | . . 20 . . . . . . . . . . . . . . . . . 1 . . . . Naked Turns . | . . . . . . . . . . . . . . . . . . . . . . . . . Heaviest Build 46 | 11 27 38 46 20 19 20 23 25 23 25 25 25 25 25 31 30 35 33 33 35 30 32 37 37 Greatest Support 112 | 40 40 60 112 20 20 20 20 25 25 25 25 25 25 25 30 30 39 35 35 45 40 42 43 45 Greatest Overweight (x) 2 | . . 2 . . . . 1 . . . . . . . 1 . . . . . . . . . Average Overweight (x) . | . . . . . . . . . . . . . . . . . . . . . . . . . Largest Inventory Capacity 15 | 8 15 15 15 10 10 10 10 10 10 10 10 10 10 10 10 10 10 10 10 10 10 10 10 10 Average Capacity 12 | 6 14 15 14 10 10 10 10 10 10 10 10 10 10 10 10 10 10 10 10 10 10 10 10 9 Most Carried 15 | 5 13 15 15 10 10 10 10 10 10 10 10 10 10 10 10 10 10 10 10 10 9 10 10 10 Average Carried 11 | 2 8 14 14 8 10 9 9 9 10 9 9 9 10 10 9 10 9 10 10 9 8 8 9 8 Final Capacity 15 | 8 15 15 10 10 10 10 10 10 10 10 10 10 10 10 10 10 10 10 10 10 10 10 10 5 Final Carried 15 | 3 13 15 8 10 10 10 10 10 10 9 10 10 10 10 10 10 10 10 10 10 8 10 9 5 Class Distribution -------------------- 33% | Scavenger-Mutant 26% | Mutant 20% | Hacker-Scout 14% | Hacker-Sprinter Dominant Class ---------------- Mutant | -10/Materials Scavenger-Mutant | -9/Materials Scavenger-Mutant | -8/Materials Hacker-Scout | -7/Factory Hacker-Sprinter | -7/Storage Hacker-Scout | -7/Recycling Hacker-Mutant | -7/Scraptown Hacker-Sprinter | -5/Factory Hacker-Sprinter | -5/Waste Hacker-Sprinter | -5/Factory Hacker-Scout | -5/Upper Caves Hacker-Scout | -5/Upper Caves Hacker-Scout | -5/Zhirov Hacker-Scout | -4/Proximity Caves Hacker-Scout | -4/Factory Hacker-Sprinter | -4/Waste Hacker-Scout | -4/Factory Hacker-Scout | -4/Upper Caves Hacker-Scout | -4/Upper Caves Hacker-Scout | -4/Warlord Hacker-Scout | -3/Proximity Caves Hacker-Scout | -3/Research Hacker-Sprinter | -3/Testing Hacker-Scout | -2/Research Resources | -11 -10 -9 -8 -7 -7 -7 -7 -5 -5 -5 -5 -5 -5 -4 -4 -4 -4 -4 -4 -4 -3 -3 -3 -2 ----------- Run | Yrd Mat Mat Mat Fac Sto Rec Scr Fac Was Fac Upp Upp Zhi Pro Fac Was Fac Upp Upp War Pro Res Tes Res Matter Collected 4657 | 237 399 1153 1650 . . 80 70 170 . 90 87 81 89 22 135 . . . 170 . 70 124 30 . Remotely . | . . . . . . . . . . . . . . . . . . . . . . . . . Salvage Created 6898 | . 833 2367 2994 55 . 66 . 138 . . . . 329 . . . . . . . . 20 30 66 Parts 380 | . 55 158 150 . . . . 5 . . . . 4 . . . . . . . . 3 1 4 Haulers Intercepted 14 | . 2 5 6 1 . . . . . . . . . . . . . . . . . . . . Recyclers Shooed 15 | . 1 3 11 . . . . . . . . . . . . . . . . . . . . . Parts Field Recycled . | . . . . . . . . . . . . . . . . . . . . . . . . . Retrieved Matter . | . . . . . . . . . . . . . . . . . . . . . . . . . Parts Self-Destructed 2 | . . . . . . . . . . . . . 2 . . . . . . . . . . . Prevented . | . . . . . . . . . . . . . . . . . . . . . . . . . Parts Restored . | . . . . . . . . . . . . . . . . . . . . . . . . . Kills | -11 -10 -9 -8 -7 -7 -7 -7 -5 -5 -5 -5 -5 -5 -4 -4 -4 -4 -4 -4 -4 -3 -3 -3 -2 ------- Run | Yrd Mat Mat Mat Fac Sto Rec Scr Fac Was Fac Upp Upp Zhi Pro Fac Was Fac Upp Upp War Pro Res Tes Res Combat Hostiles Destroyed 97 | . 14 40 38 . . . . . . . . . . . . . . . . . . . . 5 Guns 92 | . 14 40 38 . . . . . . . . . . . . . . . . . . . . . AOE 5 | . . . . . . . . . . . . . . . . . . . . . . . . 5 Classes Destroyed 13 | . 8 3 2 . . . . . . . . . . . . . . . . . . . . . Worker 20 | . 5 7 7 . . . . . . . . . . . . . . . . . . . 1 . Builder 7 | . 1 5 1 . . . . . . . . . . . . . . . . . . . . . Tunneler 3 | . . 3 . . . . . . . . . . . . . . . . . . . . . . Hauler 14 | . 2 5 6 1 . . . . . . . . . . . . . . . . . . . . Recycler 15 | . 2 4 8 . . . . 1 . . . . . . . . . . . . . . . . Operator 9 | . 1 3 4 . . . . . . . . . . . . . . . . . . 1 . . Watcher 11 | . 3 4 4 . . . . . . . . . . . . . . . . . . . . . Swarmer 37 | . 9 14 9 . . . . . . . . . . . . . . . . . . . . 5 Grunt 39 | . 5 16 18 . . . . . . . . . . . . . . . . . . . . . Brawler 1 | . . 1 . . . . . . . . . . . . . . . . . . . . . . Duelist 3 | . . . 3 . . . . . . . . . . . . . . . . . . . . . Sentry 16 | . . 9 7 . . . . . . . . . . . . . . . . . . . . . Hunter 1 | . . . 1 . . . . . . . . . . . . . . . . . . . . . Best Kill Streak 8 | . 5 7 8 1 . . . 1 . . . . . . . . . . . . . 1 1 5 Combat Bots Only 5 | . 3 5 4 . . . . . . . . . . . . . . . . . . . . 5 Max Kills in Single Turn 3 | . 2 2 2 1 . . . 1 . . . . . . . . . . . . . 1 1 3 Gunslinging 1 | . 1 1 . . . . . . . . . . . . . . . . . . . . . . Exploded 3 | . . . . . . . . . . . . . . . . . . . . . . . . 3 Melee . | . . . . . . . . . . . . . . . . . . . . . . . . . Uniques/NPCs Destroyed . | . . . . . . . . . . . . . . . . . . . . . . . . . Combat | -11 -10 -9 -8 -7 -7 -7 -7 -5 -5 -5 -5 -5 -5 -4 -4 -4 -4 -4 -4 -4 -3 -3 -3 -2 -------- Run | Yrd Mat Mat Mat Fac Sto Rec Scr Fac Was Fac Upp Upp Zhi Pro Fac Was Fac Upp Upp War Pro Res Tes Res Hostile Shots Fired 1152 | . 46 158 229 7 26 . . 65 . 81 . . . 6 85 . 32 . 10 86 . 8 86 227 Missed 537 | . 13 45 60 5 14 . . 42 . 47 . . . . 54 . 20 . 9 55 . 6 57 110 Hits 615 | . 33 113 169 2 12 . . 23 . 34 . . . 6 31 . 12 . 1 31 . 2 29 117 Melee 21 | . . 1 15 . . . . . . . . . . . . . . . . 3 . . . 2 Projectile 594 | . 33 112 154 2 12 . . 23 . 34 . . . 6 31 . 12 . 1 28 . 2 29 115 AOE 2 | . . . . . . . . . . . . . . . . . 2 . . . . . . . Critical Strikes 27 | . . 3 11 . . . . . . . . . . . . . . . . 4 . . 2 7 Actively Blocked 2 | . . . . . . . . . . . . . . . . . . . . 2 . . . . Damage Taken 10725 | . 424 1464 2689 34 135 . . 435 . 629 . . . 93 613 . 374 . 27 399 . 46 597 2766 Core 2590 | . 62 182 184 . 57 . . 138 . 228 . . . 60 150 . 27 . . 72 . . . 1430 Absorbed by Shields 97 | . . . . . . . . . . . . . . . . . . . . . . . . 97 Redirected to Shielding 336 | . . 51 . . . . . 52 . 73 . . . . 58 . . . . 102 . . . . Ignored by Resistances 121 | . . 13 108 . . . . . . . . . . . . . . . . . . . . . Regen/Repaired (Parts) 1158 | . 90 97 370 . . . 159 24 . 116 . . . . 103 . 91 . . 54 . . . 54 Core Remaining (%) 77 | 100 75 54 66 . . . 91 . . . . . . 57 . . . . . . 78 . 100 . Volleys Fired 434 | . 74 165 189 . . . . . . . . . . . . . . . . 1 . . 3 2 Largest 2 | . 2 2 2 . . . . . . . . . . . . . . . . 1 . . 1 1 Hottest 130 | . 40 46 46 . . . . . . . . . . . . . . . . 100 . . 130 46 Shots Fired 849 | . 143 322 378 . . . . . . . . . . . . . . . . 1 . . 3 2 Gun 838 | . 138 322 378 . . . . . . . . . . . . . . . . . . . . . Cannon 9 | . 5 . . . . . . . . . . . . . . . . . . 1 . . 3 . Launcher 2 | . . . . . . . . . . . . . . . . . . . . . . . . 2 Special . | . . . . . . . . . . . . . . . . . . . . . . . . . Kinetic 843 | . 143 322 378 . . . . . . . . . . . . . . . . . . . . . Thermal 2 | . . . . . . . . . . . . . . . . . . . . . . . 2 . Explosive 2 | . . . . . . . . . . . . . . . . . . . . . . . . 2 Electromagnetic . | . . . . . . . . . . . . . . . . . . . . . . . . . Entropic 2 | . . . . . . . . . . . . . . . . . . . . 1 . . 1 . Robot Hit Streak 21 | . 21 12 20 . . . . . . . . . . . . . . . . . . . . 5 Robot Miss Streak 6 | . 4 5 6 . . . . . . . . . . . . . . . . . . . . . Penetration Max . | . . . . . . . . . . . . . . . . . . . . . . . . . Secondary Targets 14 | . 3 4 7 . . . . . . . . . . . . . . . . . . . . . Max Gunslinging Chain 1 | . 1 1 1 . . . . . . . . . . . . . . . . . . . . . Shots Hit Robots 615 | . 96 212 277 3 . 5 . 5 . 1 . . 8 . 3 . . . . . . 1 1 3 Core Hits 287 | . 44 104 122 1 . 1 . 1 . . . . 2 . 1 . . . . . . 1 . 10 Critical Kills 2 | . . . 2 . . . . . . . . . . . . . . . . . . . . . Critical Parts Destroyed 2 | . 1 1 . . . . . . . . . . . . . . . . . . . . . . Critical Strikes 4 | . 1 1 2 . . . . . . . . . . . . . . . . . . . . . Destroy 4 | . 1 1 2 . . . . . . . . . . . . . . . . . . . . . Melee Attacks 231 | . . . 12 11 3 19 . 27 . 39 7 2 8 21 33 . 15 1 . . 3 18 5 7 Impact . | . . . . . . . . . . . . . . . . . . . . . . . . . Slashing 225 | . . . 12 10 3 19 . 25 . 38 7 2 8 21 31 . 15 1 . . 3 18 5 7 Piercing . | . . . . . . . . . . . . . . . . . . . . . . . . . Sneak Attacks 10 | . . . 1 2 . . . 3 . 1 . . . . 2 . . . . . . . 1 . Combat Hostiles . | . . . . . . . . . . . . . . . . . . . . . . . . . Follow-up Attacks . | . . . . . . . . . . . . . . . . . . . . . . . . . Damage Inflicted 10224 | . 1013 2732 4395 115 . 291 . 144 . . . . 756 . 48 . . . . . . 68 70 592 Guns 7879 | . 963 2732 4184 . . . . . . . . . . . . . . . . . . . . . Cannons 37 | . 37 . . . . . . . . . . . . . . . . . . . . . . . Explosions 549 | . . . . . . . . . . . . . . . . . . . . . . . . 549 Melee 1746 | . . . 211 115 . 291 . 144 . . . . 756 . 48 . . . . . . 68 70 43 Ramming 13 | . 13 . . . . . . . . . . . . . . . . . . . . . . . Kinetic 7916 | . 1000 2732 4184 . . . . . . . . . . . . . . . . . . . . . Thermal . | . . . . . . . . . . . . . . . . . . . . . . . . . Explosive 549 | . . . . . . . . . . . . . . . . . . . . . . . . 549 Electromagnetic . | . . . . . . . . . . . . . . . . . . . . . . . . . Impact . | . . . . . . . . . . . . . . . . . . . . . . . . . Slashing 1746 | . . . 211 115 . 291 . 144 . . . . 756 . 48 . . . . . . 68 70 43 Piercing . | . . . . . . . . . . . . . . . . . . . . . . . . . Highest Corruption 14 | . . . . . . . . . 6 6 6 6 6 6 1 1 7 7 7 7 . . . 14 Average Corruption 4 | . . . . . . . . . 6 6 6 6 6 6 1 1 1 7 7 7 . . . 9 Corruption Purged . | . . . . . . . . . . . . . . . . . . . . . . . . . Corruption Blocked . | . . . . . . . . . . . . . . . . . . . . . . . . . Effects 58 | . . . . . . . . . . 22 5 2 2 5 3 . 6 4 2 . . . . 7 Message Errors 13 | . . . . . . . . . . 2 2 1 1 . . . 1 2 . . . . . 4 Matter Fused 20 | . . . . . . . . . . 7 2 1 1 3 1 . 2 1 1 . . . . 1 Heat Flow Errors 5 | . . . . . . . . . . 3 1 . . . . . . . . . . . . 1 Energy Discharges 10 | . . . . . . . . . . 6 . . . 2 1 . 1 . . . . . . . Parts Rejected 2 | . . . . . . . . . . . . . . . . . 1 . . . . . . 1 Parts Fused 1 | . . . . . . . . . . 1 . . . . . . . . . . . . . . Data Loss (minor) 5 | . . . . . . . . . . 2 . . . . 1 . 1 1 . . . . . . Data Loss (major) 2 | . . . . . . . . . . 1 . . . . . . . . 1 . . . . . Overload Shots . | . . . . . . . . . . . . . . . . . . . . . . . . . Overflow Damage 433 | . . . 2 . . 102 . 5 . . . . 294 . . . . . . . . . 30 . Projectiles . | . . . . . . . . . . . . . . . . . . . . . . . . . Explosions . | . . . . . . . . . . . . . . . . . . . . . . . . . Melee 433 | . . . 2 . . 102 . 5 . . . . 294 . . . . . . . . . 30 . Knockbacks . | . . . . . . . . . . . . . . . . . . . . . . . . . Impact . | . . . . . . . . . . . . . . . . . . . . . . . . . Kinetic . | . . . . . . . . . . . . . . . . . . . . . . . . . Secondary . | . . . . . . . . . . . . . . . . . . . . . . . . . Self-Inflicted Damage . | . . . . . . . . . . . . . . . . . . . . . . . . . Shots . | . . . . . . . . . . . . . . . . . . . . . . . . . Rammed 1 | . 1 . . . . . . . . . . . . . . . . . . . . . . . Targets Rammed 1 | . 1 . . . . . . . . . . . . . . . . . . . . . . . Kicked . | . . . . . . . . . . . . . . . . . . . . . . . . . Crushed . | . . . . . . . . . . . . . . . . . . . . . . . . . Highest Temperature 244 | . 12 41 148 . 2 . . 17 . 238 232 4 3 . 6 . 1 . . 16 . . 56 244 Average Temperature 26 | . 8 6 37 . 2 . . 5 . 79 26 2 2 . 3 . 1 . . 10 . . 27 127 Received Heat Transfer 2123 | . 108 489 999 . 18 . . 63 . 57 . . . 9 36 . 33 . 9 100 . . 48 154 Siege Activations . | . . . . . . . . . . . . . . . . . . . . . . . . . Martial Activations . | . . . . . . . . . . . . . . . . . . . . . . . . . Shielding Activations . | . . . . . . . . . . . . . . . . . . . . . . . . . Robots Disrupted . | . . . . . . . . . . . . . . . . . . . . . . . . . Combat Hostiles . | . . . . . . . . . . . . . . . . . . . . . . . . . Robots Corrupted . | . . . . . . . . . . . . . . . . . . . . . . . . . Combat Hostiles . | . . . . . . . . . . . . . . . . . . . . . . . . . Parts Fried . | . . . . . . . . . . . . . . . . . . . . . . . . . Impact Corruptions . | . . . . . . . . . . . . . . . . . . . . . . . . . Robots Melted . | . . . . . . . . . . . . . . . . . . . . . . . . . Combat Hostiles . | . . . . . . . . . . . . . . . . . . . . . . . . . Parts Melted . | . . . . . . . . . . . . . . . . . . . . . . . . . Heat Transferred . | . . . . . . . . . . . . . . . . . . . . . . . . . Parts Sabotaged 6 | . . . . . . . . . . . . . . . . . . . . 6 . . . . Parts Stolen . | . . . . . . . . . . . . . . . . . . . . . . . . . Parts Stripped . | . . . . . . . . . . . . . . . . . . . . . . . . . Power Chain Reactions . | . . . . . . . . . . . . . . . . . . . . . . . . . Alert | -11 -10 -9 -8 -7 -7 -7 -7 -5 -5 -5 -5 -5 -5 -4 -4 -4 -4 -4 -4 -4 -3 -3 -3 -2 ------- Run | Yrd Mat Mat Mat Fac Sto Rec Scr Fac Was Fac Upp Upp Zhi Pro Fac Was Fac Upp Upp War Pro Res Tes Res Maximum Alert Level 2 | . . 2 2 . . . . 2 . 1 . . . . 2 1 . . . . . 1 . 2 Low Security (%) 51 | 100 100 24 10 100 100 100 . 58 100 95 . . . . 42 20 100 . . . . 6 100 63 Level 1 29 | . . 41 58 . . . . 14 . 4 . . . . 23 80 . . . . . 93 . 34 Level 2 18 | . . 34 31 . . . . 26 . . . . . . 33 . . . . . . . . 2 Level 3 . | . . . . . . . . . . . . . . . . . . . . . . . . . Level 4 . | . . . . . . . . . . . . . . . . . . . . . . . . . Level 5 . | . . . . . . . . . . . . . . . . . . . . . . . . . High Security . | . . . . . . . . . . . . . . . . . . . . . . . . . Max Security . | . . . . . . . . . . . . . . . . . . . . . . . . . Peak Influence 621 | . 110 600 617 183 172 70 . 474 151 224 . . . . 621 220 178 . . . . 300 140 458 Initial 300 | . . 4 250 159 75 66 . . 146 105 . . . . . 220 133 . . . . 300 72 . Average 213 | . 24 339 347 148 97 8 . 182 143 93 . . . . 245 205 29 . . . . 252 54 142 Influence Increases 7810 | . 445 1355 1335 177 137 30 . 825 15 649 . . 15 15 1037 . 349 . 90 . . 369 221 746 Destroy 0b10 Robot/C 1940 | . 280 800 760 . . . . . . . . . . . . . . . . . . . . 100 Destroy 0b10 Robot/NC 415 | . 70 155 150 5 . 5 . 5 . . . . 15 . . . . . . . . 5 5 . Destroy Leader 470 | . 60 208 190 2 . . . . . . . . . . . . . . . . . . . 10 Successful Hack 353 | . 5 81 46 12 . 11 . 45 . 65 . . . . 34 . 6 . . . . 15 15 18 Disable Machine 135 | . 15 . 45 . 15 . . 15 . . . . . . 15 . . . . . . . 30 . Destroy Structure 357 | . . 6 9 8 2 14 . 40 . 74 . . . . 58 . 28 . . . . 34 6 78 Advance Influence 300 | . . . . . . . . . . . . . . . . . . . . . . 300 . . Partial Spotted 450 | . . . . 30 30 . . 30 15 90 . . . . 75 . 90 . . . . 15 30 45 Lose Combat Pursuer 3390 | . 15 105 135 120 90 . . 690 . 420 . . . 15 855 . 225 . 90 . . . 135 495 Influence Decreases 7499 | . 433 772 1579 362 131 202 . 406 283 706 94 . 10 20 407 440 465 74 40 50 . 240 350 435 Entered New Map 1705 | . . 8 345 192 91 106 . . 273 46 36 . . 5 . 410 57 29 . 50 . . 57 . Time Decay 3748 | . 386 714 764 170 40 51 . 286 10 350 58 . 10 15 267 30 163 45 40 . . 130 74 145 Search Patrol Dispatched 500 | . . . . . . . . 100 . 100 . . . . 100 . . . . . . 100 . 100 Lost Part 451 | . 10 50 20 . . . . 20 . 50 . . . . 40 . 24 . . . . 10 37 190 Lost Ally 15 | . . . . . . . . . . 10 . . . . . . 5 . . . . . . . Purge Threat 1080 | . 37 . 450 . . 45 . . . 150 . . . . . . 216 . . . . . 182 . Squads Dispatched 76 | . 1 6 7 2 1 . . 9 . 10 . . . . 18 . 13 . . . . 2 . 7 Investigation 42 | . . 3 2 2 . . . 4 . 8 . . . . 12 . 8 . . . . 1 . 2 Extermination 14 | . . . . . . . . 2 . 2 . . . . 3 . 2 . . . . 1 . 4 Reinforcement 19 | . 1 3 4 . 1 . . 3 . . . . . . 3 . 3 . . . . . . 1 Assault 1 | . . . 1 . . . . . . . . . . . . . . . . . . . . . Garrison . | . . . . . . . . . . . . . . . . . . . . . . . . . Intercept . | . . . . . . . . . . . . . . . . . . . . . . . . . Searches Triggered 5 | . . . . . . . . 1 . 1 . . . . 1 . . . . . . 1 . 1 Unchained Authorized 1 | . . . . . . . . . . . . . . . . . 1 . . . . . . . Construction Impeded . | . . . . . . . . . . . . . . . . . . . . . . . . . Haulers Reinforced . | . . . . . . . . . . . . . . . . . . . . . . . . . Active Scanning Responses . | . . . . . . . . . . . . . . . . . . . . . . . . . Cargo Convoy Interrupts . | . . . . . . . . . . . . . . . . . . . . . . . . . Stealth | -11 -10 -9 -8 -7 -7 -7 -7 -5 -5 -5 -5 -5 -5 -4 -4 -4 -4 -4 -4 -4 -3 -3 -3 -2 --------- Run | Yrd Mat Mat Mat Fac Sto Rec Scr Fac Was Fac Upp Upp Zhi Pro Fac Was Fac Upp Upp War Pro Res Tes Res Distress Signals 28 | . 1 8 7 . . . . 1 . 1 . . . . 3 . 3 . . . . . 1 3 Communications Jammed . | . . . . . . . . . . . . . . . . . . . . . . . . . Distress Signals . | . . . . . . . . . . . . . . . . . . . . . . . . . Times Spotted 524 | . 27 73 83 6 16 . . 55 5 30 . . . 1 70 6 31 . 6 20 1 9 25 60 Peak Tracking Total 20 | . 3 8 6 3 9 . . 17 5 9 . . . 1 15 6 10 . 3 20 2 7 13 18 Tactical Retreats 71 | . 1 4 6 3 2 . . 12 . 6 . . . 1 13 . 9 . 2 . . . 3 9 Traps | -11 -10 -9 -8 -7 -7 -7 -7 -5 -5 -5 -5 -5 -5 -4 -4 -4 -4 -4 -4 -4 -3 -3 -3 -2 ------- Run | Yrd Mat Mat Mat Fac Sto Rec Scr Fac Was Fac Upp Upp Zhi Pro Fac Was Fac Upp Upp War Pro Res Tes Res Traps Triggered 26 | . 1 7 1 4 . . . 4 . 1 . . . . 4 . 1 . . . . . . 3 Indirectly . | . . . . . . . . . . . . . . . . . . . . . . . . . Trap Hack Attempts 13 | . . . . . . . . 13 . . . . . . . . . . . . . . . . Triggered . | . . . . . . . . . . . . . . . . . . . . . . . . . Disarmed . | . . . . . . . . . . . . . . . . . . . . . . . . . Reprogrammed 2 | . . . . . . . . 2 . . . . . . . . . . . . . . . . Reused . | . . . . . . . . . . . . . . . . . . . . . . . . . Traps Extracted . | . . . . . . . . . . . . . . . . . . . . . . . . . Installed . | . . . . . . . . . . . . . . . . . . . . . . . . . Triggered . | . . . . . . . . . . . . . . . . . . . . . . . . . Machines | -11 -10 -9 -8 -7 -7 -7 -7 -5 -5 -5 -5 -5 -5 -4 -4 -4 -4 -4 -4 -4 -3 -3 -3 -2 ---------- Run | Yrd Mat Mat Mat Fac Sto Rec Scr Fac Was Fac Upp Upp Zhi Pro Fac Was Fac Upp Upp War Pro Res Tes Res Machines Disabled 10 | . 1 . 3 . 1 . . 1 . . . . . . 1 . . . . 1 . . 2 . Max in Single Turn 1 | . 1 . 1 . 1 . . 1 . . . . . . 1 . . . . 1 . . 1 . Garrison Access 7 | . . . 1 1 . . . 1 . 2 . . . . 1 . . . . . . . . 1 Machines Repaired . | . . . . . . . . . . . . . . . . . . . . . . . . . Machines Dismantled . | . . . . . . . . . . . . . . . . . . . . . . . . . Machines Sabotaged . | . . . . . . . . . . . . . . . . . . . . . . . . . Overloaded Fab Kills . | . . . . . . . . . . . . . . . . . . . . . . . . . Hacking | -11 -10 -9 -8 -7 -7 -7 -7 -5 -5 -5 -5 -5 -5 -4 -4 -4 -4 -4 -4 -4 -3 -3 -3 -2 --------- Run | Yrd Mat Mat Mat Fac Sto Rec Scr Fac Was Fac Upp Upp Zhi Pro Fac Was Fac Upp Upp War Pro Res Tes Res Machines Accessed 126 | . 7 9 10 7 . 5 4 9 . 21 1 1 3 . 16 . 14 1 . 3 . 4 5 6 Terminals 54 | . 5 8 4 4 . 5 . 3 . 7 . . . . 4 . 5 . . . . 2 4 3 Fabricators 5 | . . . . 2 . . . . . . . . . . 1 . 1 . . . . 1 . . Repair Stations 15 | . 1 1 2 . . . . 1 . 3 . . . . 3 . 2 . . . . . 1 1 Recycling Units 29 | . 1 . 1 . . . . 4 . 8 . . . . 7 . 6 . . . . 1 . 1 Scanalyzers 3 | . . . 2 . . . . . . 1 . . . . . . . . . . . . . . Garrison Access 7 | . . . 1 1 . . . 1 . 2 . . . . 1 . . . . . . . . 1 Total Hacks 324 | . 17 22 39 15 . 11 30 17 . 52 1 5 12 . 28 . 36 1 . 6 . 9 13 10 Successful 245 | . 8 15 28 12 . 9 30 12 . 34 1 5 12 . 19 . 32 1 . 6 . 6 10 5 Failed 79 | . 9 7 11 3 . 2 . 5 . 18 . . . . 9 . 4 . . . . 3 3 5 Catastrophic 8 | . 2 2 . . . . . 1 . 1 . . . . 1 . . . . . . . . 1 Database Lockouts . | . . . . . . . . . . . . . . . . . . . . . . . . . Manual 156 | . 11 17 16 7 1 8 . 10 . 30 . . . . 22 . 19 . . . . 4 8 3 Terminals 159 | . 13 20 21 7 . 11 . 9 . 26 . . . . 8 . 20 . . . . 7 12 5 Fabricators 13 | . . . . 7 . . . . . . . . . . 3 . 2 . . . . 1 . . Repair Stations 44 | . 3 2 10 . . . . 3 . 11 . . . . 5 . 8 . . . . . 1 1 Recycling Units 36 | . 1 . 3 . . . . 4 . 9 . . . . 11 . 6 . . . . 1 . 1 Scanalyzers 7 | . . . 4 . . . . . . 3 . . . . . . . . . . . . . . Garrison Access 10 | . . . 1 1 . . . 1 . 3 . . . . 1 . . . . . . . . 3 Terminal Hacks 95 | . 2 1 5 1 . 2 30 1 . 7 1 5 12 . 2 . 10 1 . 6 . 3 5 1 Record 38 | . . . . . . . 29 . . . . 5 4 . . . . . . . . . . . Part Schematic 4 | . . . . . . . . . . . . . 4 . . . . . . . . . . . Robot Analysis 4 | . . . . . . . . . . . . . 4 . . . . . . . . . . . Prototype ID Bank 5 | . . . . . . . . . . 1 . . . . . . . . . 4 . . . . Open Door 4 | . . . . . . . . . . . 1 . . . . . . 1 . 2 . . . . Branch Access Points 4 | . . . . . . . . . . 2 . . . . . . 1 . . . . 1 . . Unreport Threat 14 | . 2 . 3 . . 2 . . . 1 . . . . . . 3 . . . . . 3 . Locate Traps 3 | . . . . . . . . . . 1 . . . . 1 . 1 . . . . . . . Transport Status 1 | . . . 1 . . . . . . . . . . . . . . . . . . . . . Recall Investigation 1 | . . . . . . . . . . 1 . . . . . . . . . . . . . . Recall Extermination 5 | . . . . . . . . . . . . . . . . . 2 . . . . 1 1 1 Hauler Manifests 7 | . . 1 1 1 . . . 1 . 1 . . . . . . 1 . . . . . 1 . Registered Prototypes 1 | . . . . . . . . . . . . . . . . . 1 . . . . . . . Zone Layout 3 | . . . . . . . . . . . . . . . 1 . 1 . . . . 1 . . Proto ID Catalog 1 | . . . . . . . 1 . . . . . . . . . . . . . . . . . Fabricator Hacks 9 | . . . . 5 . . . . . . . . . . 2 . 1 . . . . 1 . . Network Status 3 | . . . . 1 . . . . . . . . . . 1 . . . . . . 1 . . Load Schematic 4 | . . . . 2 . . . . . . . . . . 1 . 1 . . . . . . . Build 2 | . . . . 2 . . . . . . . . . . . . . . . . . . . . Repair Station Hacks 30 | . 2 2 8 . . . . 2 . 8 . . . . . . 7 . . . . . 1 . Scan Component 14 | . 1 1 4 . . . . 1 . 4 . . . . . . 3 . . . . . . . Repair 14 | . 1 1 4 . . . . 1 . 4 . . . . . . 3 . . . . . . . Refit 2 | . . . . . . . . . . . . . . . . . 1 . . . . . 1 . Recycling Unit Hacks 1 | . . . 1 . . . . . . . . . . . . . . . . . . . . . Retrieve Components 1 | . . . 1 . . . . . . . . . . . . . . . . . . . . . Scanalyzer 6 | . . . 4 . . . . . . 2 . . . . . . . . . . . . . . Insert Component 2 | . . . 1 . . . . . . 1 . . . . . . . . . . . . . . Analyze 3 | . . . 2 . . . . . . 1 . . . . . . . . . . . . . . Retrieve Study 1 | . . . 1 . . . . . . . . . . . . . . . . . . . . . Garrison Access Hacks 7 | . . . 1 1 . . . 1 . 2 . . . . 1 . . . . . . . . 1 Seal Access 7 | . . . 1 1 . . . 1 . 2 . . . . 1 . . . . . . . . 1 Unauthorized Hacks 96 | . 3 12 9 5 . 7 . 8 . 15 . . . . 14 . 14 . . . . 2 4 3 Terminals 61 | . 3 12 9 3 . 7 . 4 . 7 . . . . 3 . 7 . . . . 1 4 1 Assimilate 9 | . . . . . . . . 2 . 1 . . . . 1 . 3 . . . . . 2 . Botnet 33 | . 1 5 4 3 . 2 . 2 . 6 . . . . 2 . 4 . . . . 1 2 1 Operators 4 | . 2 1 1 . . . . . . . . . . . . . . . . . . . . . Skim 15 | . . 6 4 . . 5 . . . . . . . . . . . . . . . . . . Fabricators 4 | . . . . 2 . . . . . . . . . . 1 . 1 . . . . . . . Prioritize 1 | . . . . 1 . . . . . . . . . . . . . . . . . . . . Recompile 3 | . . . . 1 . . . . . . . . . . 1 . 1 . . . . . . . Repair Stations 4 | . . . . . . . . . . . . . . . 3 . . . . . . . . 1 Patch 4 | . . . . . . . . . . . . . . . 3 . . . . . . . . 1 Recycling Units 27 | . . . . . . . . 4 . 8 . . . . 7 . 6 . . . . 1 . 1 Fedlink 27 | . . . . . . . . 4 . 8 . . . . 7 . 6 . . . . 1 . 1 Scanalyzers . | . . . . . . . . . . . . . . . . . . . . . . . . . Garrison Access . | . . . . . . . . . . . . . . . . . . . . . . . . . Data Cores Recovered 1 | . . . . . . . . . . . . . . . . . . . . . . 1 . . Used . | . . . . . . . . . . . . . . . . . . . . . . . . . Hacking Detections 63 | . 7 9 7 3 . 4 . 4 . 10 . . . . 6 . 5 . . . . 3 2 3 Full Trace Events 3 | . 1 1 1 . . . . . . . . . . . . . . . . . . . . . Feedback Events . | . . . . . . . . . . . . . . . . . . . . . . . . . Feedback Blocked . | . . . . . . . . . . . . . . . . . . . . . . . . . Robot Schematics Acquired . | . . . . . . . . . . . . . . . . . . . . . . . . . Robots Built . | . . . . . . . . . . . . . . . . . . . . . . . . . Authchips . | . . . . . . . . . . . . . . . . . . . . . . . . . Time . | . . . . . . . . . . . . . . . . . . . . . . . . . Total Robot Build Rating . | . . . . . . . . . . . . . . . . . . . . . . . . . Part Schematics Acquired 6 | . . . 1 . . . . . . 1 . . 4 . . . . . . . . . . . Parts Built 2 | . . . . 2 . . . . . . . . . . . . . . . . . . . . Authchips 2 | . . . . 2 . . . . . . . . . . . . . . . . . . . . Time 58 | . . . . 58 . . . . . . . . . . . . . . . . . . . . Total Part Build Rating 6 | . . . . 6 . . . . . . . . . . . . . . . . . . . . Part Studies Acquired 1 | . . . 1 . . . . . . . . . . . . . . . . . . . . . Parts Repaired 14 | . 1 1 4 . . . . 1 . 4 . . . . . . 3 . . . . . . . Time 464 | . 26 38 165 . . . . 23 . 109 . . . . . . 103 . . . . . . . Parts Recycled . | . . . . . . . . . . . . . . . . . . . . . . . . . Recycled Matter . | . . . . . . . . . . . . . . . . . . . . . . . . . Retrieved Matter . | . . . . . . . . . . . . . . . . . . . . . . . . . Retrieved Components 10 | . . . 10 . . . . . . . . . . . . . . . . . . . . . Parts Scanalyzed 2 | . . . 1 . . . . . . 1 . . . . . . . . . . . . . . Part Schematics Acquired 2 | . . . 1 . . . . . . 1 . . . . . . . . . . . . . . Parts Damaged . | . . . . . . . . . . . . . . . . . . . . . . . . . Bothacking | -11 -10 -9 -8 -7 -7 -7 -7 -5 -5 -5 -5 -5 -5 -4 -4 -4 -4 -4 -4 -4 -3 -3 -3 -2 ------------ Run | Yrd Mat Mat Mat Fac Sto Rec Scr Fac Was Fac Upp Upp Zhi Pro Fac Was Fac Upp Upp War Pro Res Tes Res Used RIF Installer . | . . . . . . . . . . . . . . . . . . . . . . . . . Robots Hacked 5 | . . . . 1 . . . 2 . . . . . . 2 . . . . . . . . . Non-combat 5 | . . . . 1 . . . 2 . . . . . . 2 . . . . . . . . . Combat . | . . . . . . . . . . . . . . . . . . . . . . . . . Robot Hacks Applied 5 | . . . . 1 . . . 2 . . . . . . 2 . . . . . . . . . find_chute 5 | . . . . 1 . . . 2 . . . . . . 2 . . . . . . . . . Relay Couplers Released . | . . . . . . . . . . . . . . . . . . . . . . . . . Fabnet Peak Effective % . | . . . . . . . . . . . . . . . . . . . . . . . . . Robots Rewired . | . . . . . . . . . . . . . . . . . . . . . . . . . Allies Hacked . | . . . . . . . . . . . . . . . . . . . . . . . . . Hacks Repelled . | . . . . . . . . . . . . . . . . . . . . . . . . . Allies | -11 -10 -9 -8 -7 -7 -7 -7 -5 -5 -5 -5 -5 -5 -4 -4 -4 -4 -4 -4 -4 -3 -3 -3 -2 -------- Run | Yrd Mat Mat Mat Fac Sto Rec Scr Fac Was Fac Upp Upp Zhi Pro Fac Was Fac Upp Upp War Pro Res Tes Res Total Allies 5 | . . . . . . . . 2 . 1 . . . . . . 1 . . . . . 1 . Largest Group 2 | . . . . . . . . 2 . 1 . . . . . . 1 . . . . . 1 . Highest-Rated Group 36 | . . . . . . . . 36 . 26 . . . . . . 26 . . . . . 10 . Highest-Rated Ally 26 | . . . . . . . . 26 . 26 . . . . . . 26 . . . . . 10 . Total Orders 3 | . . . . . . . . 2 . . . . . . . . . . . . . . 1 . STAY 2 | . . . . . . . . 1 . . . . . . . . . . . . . . 1 . FOLLOW 1 | . . . . . . . . 1 . . . . . . . . . . . . . . . . Ally Attacks . | . . . . . . . . . . . . . . . . . . . . . . . . . Total Damage . | . . . . . . . . . . . . . . . . . . . . . . . . . Kills . | . . . . . . . . . . . . . . . . . . . . . . . . . Allies Corrupted . | . . . . . . . . . . . . . . . . . . . . . . . . . Allies Melted . | . . . . . . . . . . . . . . . . . . . . . . . . . Intel | -11 -10 -9 -8 -7 -7 -7 -7 -5 -5 -5 -5 -5 -5 -4 -4 -4 -4 -4 -4 -4 -3 -3 -3 -2 ------- Run | Yrd Mat Mat Mat Fac Sto Rec Scr Fac Was Fac Upp Upp Zhi Pro Fac Was Fac Upp Upp War Pro Res Tes Res Active Infowar (turns) 17572 | . 2980 3691 4185 358 85 580 785 875 35 787 150 56 70 349 624 75 573 120 117 314 103 266 180 214 Optics 3192 | . . . . . . . . . . . 136 56 70 349 624 75 573 120 117 314 103 266 180 209 Sensors 6479 | . . . 327 358 85 580 785 875 35 787 150 56 68 349 545 . 444 120 117 302 102 198 33 163 IFF 115 | . . . . . . . . . . . . . . . . . 115 . . . . . . . Terrain 3198 | . . . 2217 315 . 438 228 . . . . . . . . . . . . . . . . . Structural 3593 | . 2980 487 . . . . 126 . . . . . . . . . . . . . . . . . Seismic 5173 | . . 3205 1968 . . . . . . . . . . . . . . . . . . . . . Triangulation 2 | . . . . . . . . . . . . . . . . . 2 . . . . . . . Jamming 5 | . . . . . . . . . . . . . . . . . 5 . . . . . . . Robot Analysis Total 4 | . . . . . . . . . . . . . 4 . . . . . . . . . . . Derelict Logs Recovered 6 | . . . . . . . . . . . . 2 . 1 . . . 2 1 . . . . . Drone Launches . | . . . . . . . . . . . . . . . . . . . . . . . . . Drone Recoveries . | . . . . . . . . . . . . . . . . . . . . . . . . . Exploration | -11 -10 -9 -8 -7 -7 -7 -7 -5 -5 -5 -5 -5 -5 -4 -4 -4 -4 -4 -4 -4 -3 -3 -3 -2 ------------- Run | Yrd Mat Mat Mat Fac Sto Rec Scr Fac Was Fac Upp Upp Zhi Pro Fac Was Fac Upp Upp War Pro Res Tes Res Turns Passed 18170 | 66 3224 3691 4265 358 85 580 839 881 35 796 150 56 70 349 624 75 573 120 117 314 103 266 180 353 Spaces Moved 20199 | 45 1670 1619 2091 814 169 430 1630 1744 105 2029 363 215 150 532 1455 231 1324 439 232 493 262 582 548 1027 Core 83 | 18 . . . . . . . . . . . . . . . . . . . . . . . 65 Treads 4935 | 27 1670 1558 1680 . . . . . . . . . . . . . . . . . . . . . Legs . | . . . . . . . . . . . . . . . . . . . . . . . . . Wheels 61 | . . 61 . . . . . . . . . . . . . . . . . . . . . . Hover . | . . . . . . . . . . . . . . . . . . . . . . . . . Flight 15120 | . . . 411 814 169 430 1630 1744 105 2029 363 215 150 532 1455 231 1324 439 232 493 262 582 548 962 Fastest Speed 20 | 50 160 110 26 26 26 26 26 23 23 23 23 23 23 23 20 20 20 24 24 20 23 20 23 20 Average Speed 58 | 116 160 158 133 26 26 26 47 23 23 23 23 23 23 23 20 20 21 24 24 23 23 22 23 25 Slowest Speed 240 | 160 160 240 160 26 26 26 94 26 23 23 23 23 23 23 90 20 24 24 24 27 23 23 23 50 Overloaded Moves 23 | . . . . . . . . . . . . . . . . . . . . 8 . 3 . 12 Propulsion Burnouts . | . . . . . . . . . . . . . . . . . . . . . . . . . Robots Hopped 147 | . . . 5 8 7 . . 21 . 29 . . . . 21 . 20 . . . . 4 15 17 Potential Cave-ins . | . . . . . . . . . . . . . . . . . . . . . . . . . Cave-ins Triggered . | . . . . . . . . . . . . . . . . . . . . . . . . . Exploration Rate (%) 55 | 3 98 90 76 18 38 78 90 37 79 54 74 58 61 59 48 82 41 65 36 51 47 19 55 40 Regions Visited 24 Branch Regions 12 Pre-discovered Areas 13 | . . 2 . . . 2 5 1 . . . . 3 . . . . . . . . . . . Known Exits Taken 18 | . . 1 1 1 1 1 1 . . 1 1 1 1 1 . . 1 1 1 1 1 1 1 . Unknown Exits Taken 2 | 1 1 . . . . . . . . . . . . . . . . . . . . . . . Scrap Searched 11 | . . . . . . . 3 . . . 1 2 . 1 . . . . 3 . 1 . . . Spaces Dug 186 | . . . 3 8 2 14 . 20 . 37 7 2 . 20 29 . 14 1 . . 3 17 3 6 Terrain Destroyed 208 | . . . 3 8 2 14 . 20 . 37 7 2 . 20 29 . 14 1 . 1 3 17 3 27 Melee 183 | . . . 3 8 2 14 . 20 . 37 7 2 . 20 29 . 14 1 . . 3 17 . 6 Projectile 4 | . . . . . . . . . . . . . . . . . . . . 1 . . 3 . AOE 21 | . . . . . . . . . . . . . . . . . . . . . . . . 21 Terrain Rammed . | . . . . . . . . . . . . . . . . . . . . . . . . . Walls Destroyed . | . . . . . . . . . . . . . . . . . . . . . . . . . Machines Disabled . | . . . . . . . . . . . . . . . . . . . . . . . . . Actions | -11 -10 -9 -8 -7 -7 -7 -7 -5 -5 -5 -5 -5 -5 -4 -4 -4 -4 -4 -4 -4 -3 -3 -3 -2 --------- Run | Yrd Mat Mat Mat Fac Sto Rec Scr Fac Was Fac Upp Upp Zhi Pro Fac Was Fac Upp Upp War Pro Res Tes Res Total 25181 | 58 2092 2457 3171 937 197 868 1690 2163 115 2270 419 218 171 726 1724 258 1567 450 292 690 298 682 577 1091 Wait 3790 | . 321 560 763 58 33 414 39 372 11 193 43 . . 174 196 27 208 10 58 160 31 76 16 27 Move 19900 | 44 1669 1618 2080 797 155 429 1629 1705 104 1975 362 214 149 531 1414 230 1286 438 231 492 261 573 519 995 Hop 130 | . . . 5 8 6 . . 18 . 24 . . . . 20 . 17 . . . . 4 13 15 Pick Up 162 | 8 16 38 24 7 . 2 2 7 . 7 3 1 . . 14 . 13 . 1 5 . 4 3 7 Fast Attach 76 | 1 . 8 14 . . 1 3 8 . 4 . . 7 . 2 1 3 1 1 10 . 2 4 6 Attach 105 | 5 4 16 14 4 . . 2 8 . 4 2 . . . 15 . 10 . . 3 2 2 6 8 Detach 22 | . . . 1 1 . . 1 2 . . 1 . . . 5 . 4 . . 1 . . 3 3 Swap 78 | . 4 17 23 3 . 1 10 1 . 4 . . 1 . 2 . 2 . . 5 1 . 2 2 Drop 155 | . 3 35 46 3 . 2 4 2 . 5 1 1 6 . 8 . 9 . 1 13 . 3 3 10 Fire 434 | . 74 165 189 . . . . . . . . . . . . . . . . 1 . . 3 2 Melee 231 | . . . 12 11 3 19 . 27 . 39 7 2 8 21 33 . 15 1 . . 3 18 5 7 Ram . | . . . . . . . . . . . . . . . . . . . . . . . . . Kick . | . . . . . . . . . . . . . . . . . . . . . . . . . Crush 1 | . 1 . . . . . . . . . . . . . . . . . . . . . . . Escape Stasis 84 | . . . . 45 . . . . . 15 . . . . 15 . . . . . . . . 9 Rewire . | . . . . . . . . . . . . . . . . . . . . . . . . . Trap 13 | . . . . . . . . 13 . . . . . . . . . . . . . . . . Miscellaneous . | . . . . . . . . . . . . . . . . . . . . . . . . . Route ------- -11/Scrapyard -10/Materials (discovered 5 exits: *Mat x3 / [*Min x2]) -9/Materials (discovered 4 exits: *Mat x3 / [*Min]) -8/Materials -7/Factory (discovered 4 exits: *Fac / *Sto x2 / *Low) -7/Storage (discovered 2 exits: Fac / *Rec) -7/Recycling (discovered 2 exits: *Fac / *Scr) -7/Scraptown (discovered 2 exits: *Fac x2) -5/Factory (discovered 6 exits: *Fac x2 / *Upp x2 / Ext x2) -5/Waste -5/Factory (discovered 7 exits: *Fac x3 / *Upp x2 / *Ext x2) -5/Upper Caves -5/Upper Caves (discovered 2 exits: *Fac / *Zhi) -5/Zhirov -4/Proximity Caves -4/Factory (discovered 4 exits: *Res x2 / Upp / Arm) -4/Waste -4/Factory (discovered 5 exits: *Res x2 / *Upp x2 / Arm) -4/Upper Caves -4/Upper Caves -4/Warlord -3/Proximity Caves -3/Research (discovered 3 exits: Res / *Tes x2) -3/Testing -2/Research (discovered 3 exits: *Acc x3) History --------- Turn | Location | Event 13 | -11/Scrapyard | Discovered new exit (range 15) 67 | -11/Scrapyard | Entered Materials 105 | -10/Materials | Discovered new exit (range 11) 285 | -10/Materials | Discovered new exit (range 3) 332 | -10/Materials | Build established: Mutant 443 | -10/Materials | Discovered new exit (range 6) 2106 | -10/Materials | Repaired Assault Rifle? 2365 | -10/Materials | Discovered new exit (range 9) 2396 | -10/Materials | Discovered new exit (range 6) 3291 | -10/Materials | Entered another Materials area 3291 | -9/Materials | Evolved 2 slots: Propulsion x1, Utility x1 3833 | -9/Materials | Build established: Scavenger-Mutant 4071 | -9/Materials | Discovered new exit (range 14) 4415 | -9/Materials | Discovered new exit (range 13) 4815 | -9/Materials | Discovered new exit (range 13) 5295 | -9/Materials | Learned location of Storage (-7) 5384 | -9/Materials | Identified exit to Materials 5431 | -9/Materials | Learned location of Recycling (-7) 5439 | -9/Materials | Learned location of 1 exit from Storage 5843 | -9/Materials | Repaired Reflective Plating 6982 | -9/Materials | Entered another Materials area 6982 | -8/Materials | Evolved 2 slots: Propulsion x1, Utility x1 8651 | -8/Materials | Build established: Mutant 8698 | -8/Materials | Repaired Imp. Light Armor Plating 8738 | -8/Materials | Repaired Reflective Plating 8867 | -8/Materials | Repaired Imp. Assault Rifle 8923 | -8/Materials | Repaired Reflective Plating 9898 | -8/Materials | Build established: Scavenger-Mutant 10182 | -8/Materials | First assault squad dispatched 11115 | -8/Materials | Discovered new exit (range 15) 11222 | -8/Materials | Build established: Scout 11247 | -8/Materials | Identified exit to Factory 11247 | -8/Materials | Entered Factory 11247 | -7/Factory | Evolved 2 slots: Utility x2 11248 | -7/Factory | Identified exit to Storage 11267 | -7/Factory | Discovered new exit (range 15) 11337 | -7/Factory | Fabricated Imp. VTOL Module? 11409 | -7/Factory | Discovered new exit (range 16) 11413 | -7/Factory | Identified exit to Lower Caves 11594 | -7/Factory | Fabricated Imp. VTOL Module (x1) 11597 | -7/Factory | Discovered exit to Storage (range 16) 11605 | -7/Factory | Entered Storage 11606 | -7/Storage | Identified exit to Recycling 11607 | -7/Storage | Identified exit to Factory 11689 | -7/Storage | Used back door to open Recycling access 11690 | -7/Storage | Entered Recycling 11803 | -7/Recycling | Discovered new exit (range 16) 11895 | -7/Recycling | Learned 2 Hub_04(d) zone layouts 11955 | -7/Recycling | Learned location of 1 exit from Extension 12007 | -7/Recycling | Learned location of 1 exit from Extension 12050 | -7/Recycling | Learned 8 Factory zone layouts 12083 | -7/Recycling | Learned location of 1 exit from Extension 12125 | -7/Recycling | Build established: Hacker-Scout 12141 | -7/Recycling | Identified exit to Scraptown 12185 | -7/Recycling | Learned location of Zion (-6) 12264 | -7/Recycling | Scanned before Scraplab entrance 12267 | -7/Recycling | Entered Scraplab 12270 | -7/Recycling | Entered Scraptown 12271 | -7/Scraptown | Identified exit to Factory 12327 | -7/Scraptown | Heard Great Nut preacher, LISTEN AND RECITE! 12334 | -7/Scraptown | Visited Comm Corps 12351 | -7/Scraptown | Visited The Evicted 12370 | -7/Scraptown | Visited TADAMA 12375 | -7/Scraptown | Visited Cyclists 12382 | -7/Scraptown | Visited Supply Room 12439 | -7/Scraptown | Visited CR-KLE's Repair Center 12443 | -7/Scraptown | Visited Science Testing Area 12457 | -7/Scraptown | Visited UFD Registry 12457 | -7/Scraptown | Registered with UFD as "Plasmalever" 12479 | -7/Scraptown | Entered Cyclist Reading Room 12492 | -7/Scraptown | Visited A0-MCA Data Center 12498 | -7/Scraptown | Given a B- rating by A0-MCA 12503 | -7/Scraptown | Found A0-MCA's Component Scanner 12527 | -7/Scraptown | Visited Science Guys 12557 | -7/Scraptown | Visited Scrapoid Research Area 12572 | -7/Scraptown | Visited Abandonware Association 12583 | -7/Scraptown | Learned abandonware demo "ERRANTS.EXE" 12583 | -7/Scraptown | Learned abandonware demo "MELTYB.EXE" 12717 | -7/Scraptown | Visited Scrapoid Pod Storage 12730 | -7/Scraptown | Visited Infowarlord's Domain 12735 | -7/Scraptown | Found Exp. Signal Interpreter 12749 | -7/Scraptown | Visited LU-1G1's Boring Crew 12788 | -7/Scraptown | Visited Curators Association 12794 | -7/Scraptown | Build established: Hacker-Mutant 12832 | -7/Scraptown | Visited Cartography Club 12855 | -7/Scraptown | Found Deep Structural Scanner 12859 | -7/Scraptown | Learned location of Proximity Caves (-5) 12859 | -7/Scraptown | Learned location of Warlord (-4) 12859 | -7/Scraptown | Learned location of Cetus (-5) 12859 | -7/Scraptown | Learned location of Archives (-5) 12859 | -7/Scraptown | Learned location of Quarantine (-2) 12859 | -7/Scraptown | Learned 16 Materials zone layouts 12859 | -7/Scraptown | Learned 4 Access zone layouts 12859 | -7/Scraptown | Learned 16 Lower Caves zone layouts 12859 | -7/Scraptown | Learned 4 Recycling zone layouts 12859 | -7/Scraptown | Learned 12 Upper Caves zone layouts 12859 | -7/Scraptown | Learned 16 Upper Caves zone layouts 12859 | -7/Scraptown | Learned 16 Proximity Caves zone layouts 12859 | -7/Scraptown | Learned 20 Proximity Caves zone layouts 12859 | -7/Scraptown | Learned Factory emergency access door positions 12859 | -7/Scraptown | Learned location of 3 exits from Factory 12859 | -7/Scraptown | Learned location of 2 exits from Research 12987 | -7/Scraptown | CR-KLE repaired 3 parts 13093 | -7/Scraptown | Met Optimus 13093 | -7/Scraptown | Accepted into 0bPrime 13109 | -7/Scraptown | Entered Factory 13109 | -5/Factory | Evolved 4 slots: Power x1, Propulsion x1, Utility x2 13110 | -5/Factory | Identified exit to Upper Caves 13111 | -5/Factory | Identified exit to Extension 13111 | -5/Factory | Identified exit to Factory 13383 | -5/Factory | Build established: Hacker-Sprinter 13428 | -5/Factory | Repaired Cld. VTOL Module? 13486 | -5/Factory | Loaded intel: 8 recycling unit locations 13520 | -5/Factory | Learned location of Protoforge (-2) 13644 | -5/Factory | Spotted B-75 Beast 13709 | -5/Factory | Search patrols dispatched 13990 | -5/Factory | Sucked down chute 13990 | -5/Factory | Entered Waste 14000 | -5/Waste | Spotted C-40 Crusher 14000 | -5/Waste | Spotted C-40 Crusher 14003 | -5/Waste | Spotted C-40 Crusher 14005 | -5/Waste | EMP discharged 14012 | -5/Waste | Spotted C-40 Crusher 14013 | -5/Waste | Spotted C-40 Crusher 14019 | -5/Waste | Spotted C-40 Crusher 14022 | -5/Waste | Discovered new exit (range 14) 14025 | -5/Waste | Identified exit to Factory 14025 | -5/Waste | Entered Factory 14098 | -5/Factory | Discovered exit to Factory (range 5) 14181 | -5/Factory | Repaired Imp. Propulsion Shielding 14213 | -5/Factory | Repaired Imp. VTOL Module? 14226 | -5/Factory | Discovered exit to Factory (range 16) 14248 | -5/Factory | Repaired Imp. VTOL Module 14324 | -5/Factory | Repaired Imp. VTOL Module 14382 | -5/Factory | Loaded intel: 8 recycling unit locations 14587 | -5/Factory | Discovered exit to Factory (range 9) 14625 | -5/Factory | Search patrols dispatched 14699 | -5/Factory | Lost 3 parts (2u1w) 14821 | -5/Factory | Entered Upper Caves 14822 | -5/Upper Caves | Identified exit to Upper Caves 14971 | -5/Upper Caves | Entered another Upper Caves area 14971 | -5/Upper Caves | Discovered exit to Factory (range 6) 15002 | -5/Upper Caves | Learned Factory non-interactive machine intel 15012 | -5/Upper Caves | Learned location of 1 exit from Factory 15012 | -5/Upper Caves | Learned Research trap positions 15012 | -5/Upper Caves | Learned Research emergency access door positions 15017 | -5/Upper Caves | Found DCF Scrap (12 items) 15022 | -5/Upper Caves | Discovered new exit (range 9) 15024 | -5/Upper Caves | Identified exit to Zhirov 15025 | -5/Upper Caves | Learned 4 Factory zone layouts 15027 | -5/Upper Caves | Entered Zhirov 15027 | -5/Zhirov | Discovered new exit (range 3) 15032 | -5/Zhirov | Met Zhirov 15036 | -5/Zhirov | Learned location of Testing (-3) 15036 | -5/Zhirov | Learned location of Command (-1) 15038 | -5/Zhirov | Zhirov requested help retrieving the SGEMP Prototype 15042 | -5/Zhirov | Found Alien Artifact 15042 | -5/Zhirov | Identified Integrated Dissipator 15042 | -5/Zhirov | Installed Integrated Dissipator, increased core heat dissipation (+20) 15097 | -5/Zhirov | Identified exit to Proximity Caves 15097 | -5/Zhirov | Entered Proximity Caves 15126 | -4/Proximity Caves | Build established: Hacker-Scout 15217 | -4/Proximity Caves | Spotted B-86 Titan 15446 | -4/Proximity Caves | Entered Factory 15446 | -4/Factory | Evolved 2 slots: Propulsion x1, Utility x1 15447 | -4/Factory | Identified exit to Research 15447 | -4/Factory | Identified exit to Armory 15448 | -4/Factory | Identified exit to Upper Caves 15450 | -4/Factory | Loaded intel: 187 non-interactive machine locations 15517 | -4/Factory | Loaded intel: 8 recycling unit locations 15930 | -4/Factory | Discovered exit to Research (range 14) 15946 | -4/Factory | Search patrols dispatched 16038 | -4/Factory | Spotted B-86 Titan 16069 | -4/Factory | Lost 3 parts (1p2u) 16070 | -4/Factory | Sucked down chute 16070 | -4/Factory | Entered Waste 16071 | -4/Waste | Identified exit to Factory 16073 | -4/Waste | Spotted C-40 Crusher 16075 | -4/Waste | Spotted C-40 Crusher 16076 | -4/Waste | Spotted C-40 Crusher 16109 | -4/Waste | Spotted C-40 Crusher 16115 | -4/Waste | Spotted C-40 Crusher 16115 | -4/Waste | Spotted C-40 Crusher 16145 | -4/Waste | Entered Factory 16163 | -4/Factory | Loaded intel: 8 recycling unit locations 16164 | -4/Factory | Discovered exit to Upper Caves (range 13) 16269 | -4/Factory | Repaired Broken Lrn. Sensor Array 16306 | -4/Factory | Spotted B-86 Titan 16344 | -4/Factory | Discovered exit to Research (range 8) 16356 | -4/Factory | Lost 3 parts (1p2n) 16455 | -4/Factory | Repaired Imp. VTOL Module? 16490 | -4/Factory | Repaired Imp. VTOL Module? 16589 | -4/Factory | Unchained authorized (DW-4LL) 16659 | -4/Factory | Discovered exit to Research (range 16) 16682 | -4/Factory | Noticed UFD Elites at a Recycling Unit 16696 | -4/Factory | DW-4LL burst out of a wall 16718 | -4/Factory | Entered Upper Caves 16748 | -4/Upper Caves | Lost 3 allies 16830 | -4/Upper Caves | Learned 12 Research zone layouts 16832 | -4/Upper Caves | Learned 4 Research zone layouts 16834 | -4/Upper Caves | Discovered new exit (range 15) 16837 | -4/Upper Caves | Identified exit to Upper Caves 16838 | -4/Upper Caves | Entered another Upper Caves area 16947 | -4/Upper Caves | Discovered new exit (range 16) 16955 | -4/Upper Caves | Identified exit to Warlord 16955 | -4/Upper Caves | Entered Warlord 16963 | -4/Warlord | System corruption cleaned by Quarantine Array 17051 | -4/Warlord | Visited the Vortex Lab 17052 | -4/Warlord | Found Prototype Energy Cannon 17052 | -4/Warlord | Identified Vortex Driver 17063 | -4/Warlord | Warlord's base attacked by MAIN.C 17095 | -4/Warlord | Found Prototype Hackware 17095 | -4/Warlord | Identified Ghost Barrier 17102 | -4/Warlord | Found Prototype Processor 17102 | -4/Warlord | Identified Exp. Armor Integrity Analyzer 17104 | -4/Warlord | Found Prototype Device 17104 | -4/Warlord | Identified Thermal Barrier 17123 | -4/Warlord | Opened side exit 17259 | -4/Warlord | Discovered new exit (range 9) 17260 | -4/Warlord | Identified exit to Proximity Caves 17269 | -4/Warlord | Entered Proximity Caves 17299 | -3/Proximity Caves | Lost 3 parts (1p1u1w) 17351 | -3/Proximity Caves | Spotter reported a threat 17358 | -3/Proximity Caves | Spotter reported a threat 17372 | -3/Proximity Caves | Entered Research 17372 | -3/Research | Evolved 2 slots: Utility x1, Weapon x1 17373 | -3/Research | Identified exit to Testing 17374 | -3/Research | Identified exit to Research 17376 | -3/Research | Loaded intel: 99 trap records 17392 | -3/Research | Loaded intel: 5 recycling unit locations 17622 | -3/Research | Search patrols dispatched 17638 | -3/Research | Entered Testing 17736 | -3/Testing | Spotted Striker 17749 | -3/Testing | Spotted Superbehemoth 17753 | -3/Testing | Superbehemoth self-activated to run performance analysis 17756 | -3/Testing | Found Prototype Energy Cannon 17781 | -3/Testing | Identified Null Cannon 17817 | -3/Testing | Discovered exit to Research (range 5) 17818 | -3/Testing | Entered Research 17818 | -2/Research | Evolved 2 slots: Weapon x2 17819 | -2/Research | Identified exit to Access 17845 | -2/Research | Lost 5 parts (1p3u1w) 17853 | -2/Research | Loaded intel: 5 recycling unit locations 17990 | -2/Research | Discovered exit to Access (range 13) 18012 | -2/Research | Lost 5 parts (1p4u) 18023 | -2/Research | Spotted B-90 Cyclops 18024 | -2/Research | System corruption reached 10% 18068 | -2/Research | Search patrols dispatched 18115 | -2/Research | Lost 4 parts (1p3u) 18119 | -2/Research | Found Spectral Analyzer 18144 | -2/Research | Core integrity fell below 50% 18165 | -2/Research | Core integrity fell below 20% 18169 | -2/Research | Spotted B-90 Cyclops 18171 | -2/Research | Self-destructed Last Messages --------------- K-01 Serf destroyed. P-80 Master resets H-88 Terminator, system corruption cleaned. System corrupted: Matter fused (-7). A0-MCA's Component Scanner destroyed. P-80 Master resets H-88 Terminator, system corruption cleaned. Slug penetrates Wall. Penetrated by Slug. M-13 Machinist repairs P-80 Master. Penetrated by Slug. P-80 Master resets H-88 Terminator, system corruption cleaned. ALERT: Potential suspicious activity detected, Programmers report to Research Zone 8M. Fabricator disabled. Knocked back. ALERT: Suspicious intruders detected, dispatching Cutter reinforcements to area. Adv. Hacking Suite destroyed. Map ----- +----------------------------------------------------+ | ????????# ??# #???????????????????? | | ????????#! ??# """ #???????????????????? | | ????????######???# """H #???????????????????? | | ?????????????????# % ^ """ #???????????????????? | | ?????????????????# """ #???????????????????? | | ?????????????????# """ #???????????????????? | | ?????????????????# """ #???????????????????? | | ?????????????????# """ #???????????????????? | | ?????????????????# #???????????????????? | | ?????????????????+ #???????????????????? | | ?????????????????# #???????????????????? | | ?????????????????# #???????????????????? | | ?????????????????# ### #???????????????????? | | ?????????????????# #?# #???????????????????? | | ?????????????????# #?# ws #???????????????????? | | ?????????????????# #?#ss #???????????????????? | | ?????????????????# #?# s +???????????????????? | | ?????????????????# #?# #???????????????????? | | ?????????????????# #?# w#???????????????????? | | ?????????????????# #?# #???????????????????? | | ?????????????????# #?# #???????????????????? | | ?????????????????# #?# #???????????????????? | | ?????????????????# #?#% #???????????????????? | | ?????????????????# #?# #???????????????????? | | ????????????????? ??# u #???????????????????? | | ????????????????? ??#@ #???????????????????? | | ????????????????? ??# #???????????????????? | | ????????????????? ??# #???????????????????? | | ????????????????""" ??# #???????????????????? | | ??????????????????? ????# #???????????????????? | | ????????????????????????# p#???????????????????? | | ????????????????????????# ???????????????????? | | ????????????????????????# ??????????????????? | | ????????????????????????# ?????????????????? | | ??????????????H?????????#]]= ?????????????????? | | ????????????????????????#]== !????????????????? | | ????????????????????????B]== p!???????????????? | | ????????????????????????B ???????????????? | | ????????????????????????# ??????????????? | | ????????????????????????# ?????????????? | | ???????????????????????? kC #######?????????????? | | ????????????????????????## ###???????????????????? | | ?????????????????????????? #?????????????????????? | | ?????????????????????????? #?????????????????????? | | ?????????????????????????? ??????????????????????? | | ?????????????????????????? ??????????????????????? | | ?????????????????????????? ??????????????????????? | | ?????????????????????????? ??????????????????????? | | ?????????????????????????? ??????????????????????? | | ?????????????????????????????????????????????????? | +----------------------------------------------------+ Best States ------------- Heat Dissipation 69 Energy Generation 37 Energy Capacity 265 Matter Stores 300 Matter Capacity 300 Sight Range 24 Robot Scan Range 18 Terrain Scan Range 14 Terrain Scan Density 10 Power Amplification 30 Additional Mass Support 9 Armor Coverage 300 Resistance: KI 20 Resistance: TH 10 Propulsion Shielding 66 Evasion (%) 77 Recoil Reduction 4 Offensive Hacking 42 Defensive Hacking 20 Authchip Count 1 Item Schematics ----------------- Imp. VTOL Module | -8/Materials | Scanalyzed Cld. VTOL Module | -5/Factory | Scanalyzed Assault Drone Bay | -5/Zhirov | Free Exp. Heat Sink | -5/Zhirov | Free Exp. Optical Array | -5/Zhirov | Free Imp. Arc Thrower | -5/Zhirov | Free Robot Schematics ------------------ None Fabricated ------------ Imp. VTOL Module | x1 | -7/Factory | Authchip Imp. VTOL Module | x1 | -7/Factory | Authchip Repaired ---------- Assault Rifle | 10% | -10/Materials Reflective Plating | 19% | -9/Materials Imp. Light Armor Plating | 12% | -8/Materials Reflective Plating | 37% | -8/Materials Imp. Assault Rifle | 26% | -8/Materials Reflective Plating | 71% | -8/Materials Cld. VTOL Module | 60% | -5/Factory Imp. Propulsion Shielding | 48% | -5/Factory Imp. VTOL Module | 50% | -5/Factory Imp. VTOL Module | 56% | -5/Factory Imp. VTOL Module | 66% | -5/Factory Lrn. Sensor Array | 11% | -4/Factory | Broken Imp. VTOL Module | 26% | -4/Factory Imp. VTOL Module | 40% | -4/Factory Studied --------- Lgt. Nuclear Core | -8/Materials | Hacked Alien Tech Used ----------------- Integrated Dissipator Achievements -------------- Hulk Smash UFD MVP Challenges ------------ None Game ------ Seed PlasmaMobileStick Manual? 0 Play Time 03:36:44 Cumulative 316.4 hours Start 2025.10.26 @ 11:50:29 End 2025.10.26 @ 15:49:48 Sessions 1 Manual Loads 0 Difficulty Rogue Special Mode None Game No. 242 Rogue 242 Adventurer 0 Explorer 0 Win Type - Total 25 Types 12/1/7/2/1/0/0/1/0/1 Lore% 94 Gallery% 87 Achievement% 58 Wizard Run 0 Options --------- Layout 1 ASCII 0 Keyboard 0 Movement Numpad Keybinds 0 Fullscreen 1 Font 24/Proggy Map View 50x35 Zoom Use 0% Tactical HUD 0 Map Filters NONE Filters NONE Steam 1 RUN: f61af890-ebc9-45c8-85de-fb5b6d8399f9